bitfinex/quotes_ETHUSD_20260314
["timestamp","ask_amount","ask_price","bid_price","bid_amount"]
[1773504497412,0.001,2071.7,2071.4,0.74231975]
[1773504502226,0.001,2071.7,2071.6,0.0011]
[1773504505051,1.96407813,2072.1,2071.6,1.99489265]
[1773504505334,5.07051838,2072.4,2071.8,1.99379265]
[1773504505335,1.96407813,2072.4,2071.8,1.99379265]
[1773504506312,2.29630665,2072.5,2071.8,1.99379265]
[1773504506728,3.50258414,2072.5,2071.8,1.99379265]
[1773504507035,3.50258414,2072.5,2072.0,1.99379265]
[1773504507227,3.50258019,2072.5,2072.0,1.99379265]
[1773504507537,0.33222852,2072.5,2072.0,1.99379265]
[1773504508037,1.53850173,2072.5,2072.0,1.99379265]
[1773504509911,0.33222852,2072.5,2072.2,1.99379265]
[1773504510125,1.53850233,2072.5,2072.2,1.99379265]
[1773504510540,0.33222852,2072.5,2072.2,1.99379265]
[1773504511332,3.5025859,2072.5,2072.2,1.99379265]
[1773504511934,3.5025859,2072.5,2072.1,1.99379265]
[1773504512178,1.96407813,2072.6,2072.2,1.99379265]
[1773504513051,1.20616426,2072.7,2072.2,1.99379265]
[1773504513428,3.17024239,2072.7,2072.2,1.99379265]
[1773504513845,1.96407813,2072.6,2072.2,1.99379265]
[1773504514264,3.17030559,2072.6,2072.2,1.99379265]
[1773504514567,1.96407813,2072.6,2072.2,1.99379265]
[1773504514736,3.1703015,2072.6,2072.2,1.99379265]
[1773504515274,0.001,2072.3,2072.2,1.99379265]
[1773504516168,1.96407813,2072.2,2071.9,3.40779265]
[1773504517556,0.001,2072.3,2072.0,1.99379265]
[1773504517762,3.17019428,2072.7,2072.0,1.99379265]
[1773504519079,3.17019428,2072.7,2072.1,1.20650547]
[1773504519297,3.17019428,2072.7,2072.2,1.99379265]
[1773504519702,1.96403691,2072.7,2072.2,1.99379265]
[1773504520211,1.96407813,2072.6,2072.1,1.20650547]
[1773504520798,1.96407813,2072.6,2072.1,3.20029812]
[1773504521015,1.96407813,2072.6,2072.2,1.99379265]
[1773504521527,1.96407813,2072.6,2072.2,3.20022957]
[1773504522618,1.96407813,2072.6,2072.3,1.99379265]
[1773504522796,3.1702532,2072.7,2072.3,1.99379265]
[1773504522991,1.20617507,2072.7,2072.3,1.99379265]
[1773504523191,1.96407813,2072.6,2072.3,1.99379265]
[1773504524626,1.96407813,2072.7,2072.4,1.20633082]
[1773504524817,1.96407813,2072.7,2072.3,3.2001545]
[1773504525136,1.96407813,2072.7,2072.3,1.99379265]
[1773504526598,1.96407813,2072.7,2072.4,1.99379265]
[1773504526797,1.96407813,2072.7,2072.4,1.99489265]
[1773504527101,3.17023874,2072.7,2072.4,1.99489265]
[1773504528224,3.1702218,2072.8,2072.4,1.99489265]
[1773504528922,1.96507813,2072.9,2072.5,1.99379265]
[1773504530623,3.17114689,2072.9,2072.5,1.99379265]
[1773504531235,2.01709921,2072.8,2072.5,1.99379265]
[1773504533208,2.01709921,2072.8,2072.4,3.2889642]
[1773504534633,2.01709921,2072.8,2072.5,2.0815785]
[1773504536160,0.001,2072.9,2072.5,2.0815785]
[1773504536308,1.4432646,2073.1,2072.7,2.0815785]
[1773504536309,3.15319615,2073.1,2072.7,2.0815785]
[1773504537009,1.94726212,2073.1,2072.7,2.0815785]
[1773504537949,1.20683918,2073.3,2072.7,2.0815785]
[1773504537950,0.001,2073.3,2072.7,2.0815785]
[1773504538306,0.001,2073.3,2072.9,2.0815785]
[1773504540419,0.001,2073.3,2073.0,2.0815785]
[1773504543046,0.001,2073.3,2073.2,2.0815785]
[1773504544947,0.001,2073.6,2073.4,3.28732751]
[1773504545148,0.0002,2073.6,2073.4,2.0815785]
[1773504547121,1.80847956,2073.6,2073.1,2.0815785]
[1773504550947,3.01413992,2073.6,2073.1,1.20590322]
[1773504551154,3.01413992,2073.6,2073.2,2.0815785]
[1773504554157,3.01413992,2073.6,2073.4,0.0011]
[1773504556755,1.85114892,2073.5,2073.4,0.0011]
[1773504558332,0.0002,2073.6,2073.4,0.0011]
[1773504559265,0.0002,2073.6,2073.4,2.0826785]
[1773504559578,1.85697126,2073.9,2073.5,2.0815785]
[1773504559733,1.20543556,2074.0,2073.5,2.0815785]
[1773504559734,3.06237973,2074.0,2073.5,2.0815785]
[1773504560133,1.85697126,2074.0,2073.5,2.0815785]
[1773504561042,0.001,2074.2,2073.7,2.0815785]
[1773504561230,0.001,2074.2,2073.8,2.0815785]
[1773504564167,0.001,2074.2,2074.0,2.20002468]
[1773504564369,1.20509414,2074.6,2074.0,2.20002468]
[1773504564672,3.10268472,2074.6,2074.0,2.20002468]
[1773504565568,3.10264221,2074.6,2074.0,2.20002468]
[1773504567067,3.03837403,2074.8,2074.2,2.20002468]
[1773504567547,1.8325734,2074.7,2074.2,2.20002468]
[1773504568667,0.002,2074.5,2074.2,2.20002468]
[1773504569071,0.002,2074.5,2074.3,2.20002468]
[1773504570650,1.8366101,2074.5,2073.9,3.62102468]
[1773504570846,1.8366101,2074.5,2074.0,2.20002468]
[1773504571050,3.04174891,2074.5,2074.1,2.20002468]
[1773504571363,3.04315157,2074.5,2074.1,2.20002468]
[1773504571566,1.83601276,2074.4,2074.1,2.20002468]
[1773504572063,1.83601276,2074.4,2074.0,2.20002468]
[1773504574468,3.041208,2074.4,2074.0,2.20002468]
[1773504574979,1.83601276,2074.4,2074.0,1.20539543]
[1773504575158,1.83601276,2074.4,2074.1,2.20002468]
[1773504575682,3.04118507,2074.4,2074.1,2.20002468]
[1773504579482,1.85367102,2074.3,2073.8,2.20002468]
[1773504579792,1.85367102,2074.3,2073.9,3.62302468]
[1773504579956,1.85367102,2074.3,2074.0,2.20002468]
[1773504580871,1.85367102,2074.3,2074.2,0.001]
[1773504581096,3.06244928,2074.4,2074.2,0.001]
[1773504581587,3.06444928,2074.4,2074.2,0.001]
[1773504582589,1.20717231,2074.4,2074.2,2.20102468]
[1773504582763,0.002,2074.4,2074.2,2.20102468]
[1773504585872,3.06712949,2074.7,2074.3,2.20002468]
[1773504586081,1.86209418,2074.6,2074.2,0.001]
[1773504586499,1.86209418,2074.6,2074.2,2.20102468]
[1773504589486,4.81977018,2074.8,2074.3,2.20002468]
[1773504589684,1.86537998,2074.7,2074.3,2.20002468]
[1773504589890,3.07037347,2074.7,2074.3,2.20002468]
[1773504592198,0.11661251,2074.8,2074.4,2.08297726]
[1773504592505,1.20484606,2075.0,2074.4,2.08297726]
[1773504593294,1.20484606,2075.0,2074.6,2.20062627]
[1773504593687,1.32138752,2075.1,2074.6,2.20062627]
[1773504594596,1.32138752,2075.1,2074.7,2.20062627]
[1773504595495,1.32138752,2075.1,2074.6,3.62762627]
[1773504595496,0.002,2074.8,2074.6,3.62762627]
[1773504597593,0.002,2074.8,2074.7,2.20062627]
[1773504597804,1.20480753,2075.1,2074.7,2.19962627]
[1773504598184,1.38940773,2075.1,2074.7,2.19962627]
[1773504599405,0.18775283,2075.0,2074.7,2.19962627]
[1773504599909,0.18775283,2075.0,2074.7,3.40458242]
[1773504600092,1.20477601,2075.1,2074.7,2.19962627]
[1773504600297,0.18923898,2075.0,2074.6,1.428]
[1773504600511,0.18923898,2075.0,2074.6,3.62762627]
[1773504600801,0.18923898,2075.0,2074.6,1.428]
[1773504601102,0.18923898,2075.0,2074.7,2.19962627]
[1773504601307,1.39408406,2075.0,2074.7,2.19962627]
[1773504601690,1.20484508,2075.0,2074.7,2.19962627]
[1773504602908,1.39552892,2075.1,2074.7,2.19962627]
[1773504603079,6.01881741,2075.2,2074.7,2.19962627]
[1773504603080,2.40474763,2075.2,2074.8,2.19962627]
[1773504603408,1.39586901,2075.0,2074.7,1.428]
[1773504604007,1.39586901,2075.0,2074.7,3.62762627]
[1773504604709,1.39476159,2075.0,2074.5,2.20062627]
[1773504604892,0.18994232,2074.9,2074.6,3.62862627]
[1773504605293,1.39609329,2075.0,2074.6,3.62862627]
[1773504605493,1.39609329,2075.0,2074.6,2.19962627]
[1773504605798,0.19127402,2074.9,2074.6,2.19962627]
[1773504609489,1.39615136,2074.9,2074.8,0.001]
[1773504611211,1.29615136,2074.9,2074.8,0.001]
[1773504611612,0.0794398,2075.0,2074.8,0.001]
[1773504613697,1.29066111,2074.9,2074.8,0.001]
[1773504615597,0.08812696,2074.8,2074.5,0.001]
[1773504615803,1.20487734,2074.9,2074.5,2.25876328]
[1773504616505,1.29413993,2074.9,2074.5,2.25876328]
[1773504617628,0.09232139,2075.0,2074.5,2.25876328]
[1773504619737,1.20487734,2074.9,2074.5,2.25876328]
[1773504622614,1.20487734,2074.9,2074.7,0.001]
[1773504622822,0.002,2074.8,2074.7,0.001]
[1773504624234,0.09915051,2074.8,2074.7,0.001]
[1773504624412,0.002,2074.8,2074.7,0.001]
[1773504627231,0.002,2074.8,2074.7,2.25876328]
[1773504627433,0.002,2074.8,2074.7,0.001]
[1773504631739,1.20499349,2074.7,2074.3,0.001]
[1773504632039,0.10165854,2074.6,2074.3,0.001]
[1773504632342,0.10165854,2074.6,2074.3,2.25926328]
[1773504633936,0.10165854,2074.6,2074.3,0.001]
[1773504634519,0.10165854,2074.6,2074.3,2.23096014]
[1773504634729,1.38525925,2074.8,2074.3,2.23096014]
[1773504634937,0.17832334,2074.7,2074.3,2.23096014]
[1773504636643,1.38336678,2074.7,2074.5,0.001]
[1773504636944,1.38536678,2074.7,2074.5,0.001]
[1773504637542,0.002,2074.9,2074.6,2.22996014]
[1773504637754,1.2068891,2074.9,2074.6,2.22996014]
[1773504638044,0.17962799,2074.8,2074.5,0.001]
[1773504638244,1.2068891,2074.9,2074.5,2.23096014]
[1773504638245,1.38701442,2074.9,2074.5,2.23096014]
[1773504640558,0.18079572,2074.8,2074.5,2.23096014]
[1773504642856,0.002,2074.9,2074.5,2.23096014]
[1773504643959,0.18362833,2074.9,2074.5,2.23096014]
[1773504644963,1.20493541,2074.8,2074.5,2.23096014]
[1773504645139,1.20493541,2074.8,2074.5,0.001]
[1773504645140,1.3868153,2074.8,2074.5,0.001]
[1773504645346,0.18208055,2074.7,2074.5,0.001]
[1773504648860,0.1820727,2074.9,2074.5,2.23096014]
[1773504650376,0.002,2074.7,2074.5,2.23096014]
[1773504650985,0.18494492,2074.7,2074.5,0.001]
[1773504655866,0.18546664,2074.6,2074.5,0.001]
[1773504658195,1.39051821,2074.6,2074.5,0.001]
[1773504658372,0.18546664,2074.6,2074.5,0.001]
[1773504658690,1.39051821,2074.6,2074.5,0.001]
[1773504659466,0.18546664,2074.6,2074.5,0.001]
[1773504659768,1.39051821,2074.6,2074.5,0.001]
[1773504660098,0.18494469,2074.4,2074.2,0.001]
[1773504662486,1.39012364,2074.4,2074.2,0.001]
[1773504662872,0.18700346,2074.3,2074.2,0.001]
[1773504664091,0.18700346,2074.3,2073.9,2.22176328]
[1773504664092,1.39202745,2074.2,2073.9,2.22176328]
[1773504664794,1.39202745,2074.2,2073.9,0.001]
[1773504664997,0.18646511,2074.1,2073.9,0.001]
[1773504666273,1.3918183,2074.1,2073.9,0.001]
[1773504669697,2.28406788,2074.0,2073.6,2.17638339]
[1773504670798,2.28406788,2074.0,2073.5,0.001]
[1773504671609,1.20545831,2073.9,2073.5,0.001]
[1773504671780,2.28406788,2073.8,2073.5,0.001]
[1773504673681,3.48958528,2073.8,2073.5,0.001]
[1773504673874,1.2055174,2073.8,2073.5,0.001]
[1773504674076,2.28406788,2073.7,2073.5,0.001]
[1773504674777,3.48956857,2073.9,2073.5,2.17738339]
[1773504674978,3.48956857,2073.9,2073.7,0.001]
[1773504675206,3.49156857,2073.9,2073.7,0.001]
[1773504676709,2.28406788,2073.8,2073.7,0.001]
[1773504679106,3.48958432,2073.8,2073.7,0.001]
[1773504681007,2.28406788,2073.7,2073.4,0.0011]
[1773504681303,2.28406788,2073.6,2073.4,0.0011]
[1773504686785,2.27521094,2073.7,2073.4,2.21502437]
[1773504687014,3.48079014,2073.7,2073.4,2.21502437]
[1773504687210,3.48079014,2073.7,2073.6,0.001]
[1773504693237,2.27521094,2073.7,2073.6,0.001]
[1773504693427,2.72435505,2073.7,2073.6,0.001]
[1773504695242,3.92992962,2073.7,2073.6,0.001]
[1773504695442,2.27521094,2073.6,2073.4,0.0011]
[1773504695612,2.27521094,2073.6,2073.2,2.21492437]
[1773504695613,2.27521094,2073.6,2073.2,0.001]
[1773504695941,2.27521094,2073.4,2073.2,0.001]
[1773504699822,2.27521094,2073.4,2073.3,0.001]
[1773504705554,2.72477394,2073.4,2073.3,0.001]
[1773504706322,0.002,2073.6,2073.4,2.21392437]
[1773504707646,0.002,2073.6,2073.3,0.001]
[1773504707822,2.27721094,2073.6,2073.3,0.001]
[1773504708760,2.27721094,2073.6,2073.3,2.21492437]
[1773504709980,3.48285379,2073.6,2073.3,0.001]
[1773504710256,2.2813652,2073.5,2073.3,0.001]
[1773504711562,2.2833652,2073.5,2073.3,0.001]
[1773504711946,3.48909091,2073.5,2073.3,0.001]
[1773504712461,0.002,2073.5,2073.3,2.14821202]
[1773504712665,0.002,2073.6,2073.4,2.14721202]
[1773504725480,0.002,2073.6,2073.5,2.14821202]
[1773504729078,0.002,2073.6,2073.3,0.001]
[1773504729277,0.002,2073.6,2073.4,2.14641202]
[1773504732088,2.26485993,2073.6,2073.3,0.001]
[1773504733992,1.20569086,2073.5,2073.3,0.001]
[1773504734771,3.46855079,2073.5,2073.3,0.001]
[1773504735279,1.20569086,2073.5,2073.3,0.001]
[1773504735478,1.20569086,2073.5,2073.3,2.14821202]
[1773504735970,7.08739293,2073.6,2073.3,2.14821202]
[1773504736760,1.20569086,2073.5,2073.3,2.14821202]
[1773504738092,0.002,2073.4,2073.3,2.14821202]
[1773504744104,2.15689019,2073.3,2073.0,0.001]
[1773504746698,1.20586532,2073.2,2073.0,0.001]
[1773504746902,3.36275551,2073.2,2073.0,0.001]
[1773504751606,2.15689019,2073.2,2073.0,0.001]
[1773504752518,1.20784472,2073.3,2073.0,2.15966597]
[1773504752991,3.36473491,2073.3,2073.0,2.15966597]
[1773504755908,2.15889019,2073.3,2073.0,2.15966597]
[1773504756106,3.36470355,2073.3,2073.0,2.15966597]
[1773504761986,3.36470355,2073.3,2073.2,0.0011]
[1773504762816,1.20781336,2073.3,2073.2,0.0011]
[1773504766917,1.20781336,2073.3,2073.0,2.18632955]
[1773504768938,0.002,2073.3,2073.0,1.20695357]
[1773504769101,3.39033315,2073.5,2073.2,2.18532955]
[1773504769102,0.002,2073.5,2073.2,2.18532955]
[1773504769824,0.002,2073.7,2073.3,2.28479382]
[1773504770934,0.002,2073.7,2073.4,2.28479382]
[1773504773835,0.002,2073.7,2073.5,2.23816667]
[1773504787952,2.33817116,2073.7,2073.3,0.0011]
[1773504788119,2.33617116,2073.5,2073.3,0.0011]
[1773504788759,2.33617116,2073.5,2073.0,0.001]
[1773504790527,3.54192017,2073.4,2073.0,2.23806667]
[1773504795847,1.20574901,2073.4,2073.0,2.23806667]
[1773504796048,3.54192017,2073.4,2073.0,2.23806667]
[1773504797547,3.54192017,2073.4,2073.2,0.001]
[1773504802238,2.33617116,2073.4,2073.2,0.001]
[1773504806879,2.28281509,2073.7,2073.3,2.3946856]
[1773504807074,2.28081509,2073.6,2073.3,2.3946856]
[1773504807263,2.28081509,2073.6,2073.2,0.001]
[1773504807465,2.28081509,2073.6,2073.0,0.001]
[1773504809050,2.28081509,2073.4,2073.2,0.0011]
[1773504809262,2.28181509,2073.4,2073.2,0.0011]
[1773504812081,3.48662225,2073.3,2073.2,0.0011]
[1773504814578,3.48662225,2073.3,2073.0,0.001]
[1773504814579,2.28081509,2073.2,2073.0,0.001]
[1773504816956,3.48672262,2073.2,2073.0,0.001]
[1773504820868,3.48772262,2073.2,2073.0,0.001]
[1773504828287,2.28081509,2073.3,2073.0,2.3956856]
[1773504828475,3.4875641,2073.4,2073.0,2.3956856]
[1773504830884,2.21468188,2073.3,2073.0,0.001]
[1773504833097,3.42048904,2073.3,2073.2,0.0011]
[1773504833396,3.42048904,2073.3,2073.0,0.001]
[1773504833815,0.001,2073.2,2073.0,0.001]
[1773504835095,0.001,2073.2,2073.0,2.22481883]
[1773504850208,0.001,2073.2,2073.0,2.12481883]
[1773504852706,0.001,2073.2,2073.0,2.02481883]
[1773504857384,0.001,2073.2,2073.0,2.02591883]
[1773504876201,2.27412256,2073.7,2073.3,2.35176642]
[1773504876395,0.002,2073.7,2073.4,2.35102106]
[1773504877729,0.002,2073.7,2073.4,3.55676484]
[1773504877934,0.002,2073.7,2073.4,3.55676732]
[1773504878235,2.27412256,2073.7,2073.4,3.55676732]
[1773504878404,2.27412256,2073.7,2073.4,2.35102106]
[1773504878698,2.27412256,2073.7,2073.4,3.55676091]
[1773504878930,2.27412256,2073.7,2073.1,2.34947957]
[1773504879136,2.27412256,2073.7,2073.2,1.472]
[1773504880133,1.20563271,2073.6,2073.2,1.472]
[1773504880436,2.27212256,2073.5,2073.2,1.4731]
[1773504880730,2.27312256,2073.5,2073.2,1.4731]
[1773504881833,2.27312256,2073.5,2073.2,2.67896484]
[1773504882031,2.27312256,2073.5,2073.2,5.02600264]
[1773504883930,0.3487115,2073.5,2073.2,5.02600264]
[1773504884136,2.27212256,2073.6,2073.2,5.02600264]
[1773504884507,2.27212256,2073.6,2073.2,3.8201378]
[1773504884707,2.27212256,2073.6,2073.2,5.02599785]
[1773504886358,2.27412256,2073.7,2073.3,2.37529513]
[1773504886711,3.47969916,2073.7,2073.3,2.37529513]
[1773504891013,3.47969916,2073.7,2073.3,3.58110149]
[1773504892141,3.47969916,2073.7,2073.3,2.37529513]
[1773504892342,3.47969916,2073.7,2073.5,0.0011]
[1773504901648,2.27412256,2073.7,2073.5,0.0011]
[1773504902949,3.47970176,2073.7,2073.5,0.0011]
[1773504910068,0.002,2073.7,2073.5,0.0011]
[1773504910363,2.39865748,2073.6,2073.5,0.0011]
[1773504919556,0.002,2073.7,2073.5,2.40698149]
[1773504920276,1.20762444,2073.7,2073.5,2.40698149]
[1773504920481,0.002,2073.7,2073.5,2.40698149]
[1773504920685,1.20758628,2073.7,2073.5,2.40698149]
[1773504921081,1.20758628,2073.7,2073.5,0.0011]
[1773504922077,0.002,2073.7,2073.5,0.0011]
[1773504924676,2.42113394,2073.7,2073.5,0.0011]
[1773504925168,2.42113394,2073.7,2073.3,0.0011]
[1773504926575,2.41913394,2073.5,2073.3,0.0011]
[1773504928994,0.002,2073.4,2073.3,0.0011]
[1773504932467,0.002,2073.6,2073.4,2.3704455]
[1773504932965,1.20764463,2073.6,2073.3,0.0011]
[1773504933168,1.20764463,2073.6,2073.2,2.32841719]
[1773504933169,3.62677857,2073.6,2073.2,2.32841719]
[1773504933372,2.41913394,2073.5,2073.2,2.32841719]
[1773504937186,2.41913394,2073.4,2073.2,0.0011]
[1773504937379,2.41913394,2073.3,2073.2,0.0011]
[1773504938176,2.41913394,2073.3,2073.0,0.0011]
[1773504939627,3.62496244,2073.3,2073.0,0.0011]
[1773504940218,2.41913394,2073.2,2073.0,0.0011]
[1773504941484,2.42113394,2073.2,2073.0,0.0011]
[1773504942216,2.42113394,2073.4,2073.1,2.3704455]
[1773504942411,0.002,2073.4,2073.1,2.3704455]
[1773504943675,0.002,2073.4,2073.1,3.57636271]
[1773504943885,0.002,2073.4,2073.2,2.3704455]
[1773504954818,0.002,2073.4,2073.2,3.57630077]
[1773504955701,0.002,2073.4,2073.3,2.42669428]
[1773504967224,0.002,2073.4,2073.3,3.63250144]
[1773504967410,0.002,2073.7,2073.4,2.34333389]
[1773504968310,0.002,2073.8,2073.5,2.34380427]
[1773504969599,0.002,2073.8,2073.5,3.54949468]
[1773504969925,0.002,2073.8,2073.6,2.34418758]
[1773504972319,0.002,2073.8,2073.3,1.20577016]
[1773504972320,2.43660537,2073.7,2073.3,1.20577016]
[1773504972624,2.43660537,2073.7,2073.3,3.55084906]
[1773504972822,2.43660537,2073.7,2073.4,2.3450789]
[1773504972998,2.43860537,2073.8,2073.4,2.3450789]
[1773504975125,2.43860537,2073.8,2073.4,3.54540564]
[1773504975512,2.43860537,2073.8,2073.5,2.3341347]
[1773504975713,0.002,2073.8,2073.5,2.3341347]
[1773504977439,0.002,2073.8,2073.5,3.53981864]
[1773504978438,0.002,2073.8,2073.6,2.31767453]
[1773504978809,2.43860537,2073.9,2073.6,2.31767453]
[1773504983143,2.43860537,2073.9,2073.6,3.52329706]
[1773504984945,0.002,2073.9,2073.7,2.28270343]
[1773504985845,2.40546355,2073.9,2073.5,4.97927746]
[1773504987446,2.40546355,2073.9,2073.6,2.26502883]
[1773504988913,2.40546355,2073.9,2073.6,3.47065687]
[1773504989347,2.40546355,2073.9,2073.7,0.0011]
[1773504989518,2.40546355,2073.9,2073.7,2.2590569]
[1773504989519,0.002,2073.9,2073.7,2.2590569]
[1773504990014,0.002,2073.9,2073.7,3.46462043]
[1773504990234,0.002,2074.0,2073.8,2.33236166]
[1773504992232,2.40546355,2074.0,2073.7,1.20663332]
[1773504993157,2.40546355,2074.0,2073.7,3.52456458]
[1773504994921,0.002,2074.0,2073.7,3.52456458]
[1773504995651,0.002,2074.0,2073.7,1.20663332]
[1773504995834,0.002,2074.0,2073.8,2.30387694]
[1773504996353,0.002,2074.0,2073.8,3.50936094]
[1773504997261,0.002,2074.0,2073.9,2.29667593]
[1773504998060,0.002,2074.0,2073.8,3.49759489]
[1773504999137,2.40546355,2074.0,2073.8,1.205484]
[1773505002051,0.002,2074.0,2073.8,1.205484]
[1773505003051,0.002,2074.0,2073.8,1.206484]
[1773505006758,2.40546355,2074.0,2073.7,0.0011]
[1773505007049,2.40546355,2074.0,2073.7,1.20666915]
[1773505008667,2.40546355,2074.0,2073.7,0.0011]
[1773505014850,2.40546355,2074.0,2073.9,0.001]
[1773505021646,0.002,2074.0,2073.9,0.001]
[1773505042285,2.16114912,2074.0,2073.9,0.001]
[1773505050489,0.002,2074.1,2073.9,0.001]
[1773505050691,2.16114912,2074.1,2073.9,0.001]
[1773505051078,2.16114912,2074.1,2074.0,0.001]
[1773505063285,0.002,2074.4,2074.1,1.0605673]
[1773505064781,2.16114912,2074.4,2074.1,1.0605673]
[1773505066205,0.002,2074.4,2074.1,2.26586601]
[1773505066413,0.002,2074.4,2074.1,2.25161774]
[1773505069206,0.002,2074.4,2074.2,1.04115888]
[1773505075208,0.002,2074.4,2074.3,1.01033868]
[1773505075408,2.11518582,2074.7,2074.3,1.01033868]
[1773505076511,2.11518582,2074.7,2074.3,0.001]
[1773505077492,2.11318582,2074.6,2074.3,0.001]
[1773505080296,2.11318582,2074.6,2074.0,0.001]
[1773505080297,2.87611067,2074.5,2074.0,0.001]
[1773505080498,2.11318582,2074.4,2073.9,0.001]
[1773505085397,2.11318582,2074.3,2073.9,0.001]
[1773505085927,2.11318582,2074.3,2073.9,0.97760726]
[1773505087023,2.11318582,2074.3,2074.1,0.001]
[1773505087319,2.11518582,2074.2,2074.1,0.001]
[1773505092943,0.002,2074.2,2074.1,0.001]
[1773505093136,0.002,2074.2,2074.1,0.96496611]
[1773505094339,0.002,2074.2,2074.1,0.001]
[1773505098019,0.002,2074.2,2074.1,0.94341959]
[1773505098344,0.002,2074.4,2074.1,0.94341959]
[1773505099128,0.001,2074.2,2074.1,0.94341959]
[1773505100659,0.001,2074.2,2074.1,2.14876166]
[1773505103554,0.002,2074.4,2074.2,0.91187175]
[1773505103762,2.11318582,2074.6,2074.2,0.91187175]
[1773505104268,2.18456204,2074.7,2074.2,0.91187175]
[1773505104478,0.002,2074.7,2074.4,0.90799377]
[1773505106930,2.18256204,2074.9,2074.4,0.90037239]
[1773505108871,2.18256204,2074.9,2074.5,1.20510966]
[1773505109164,2.18256204,2074.9,2074.5,2.0980473]
[1773505109673,0.24640746,2075.1,2074.6,2.2415608]
[1773505109674,2.18256204,2075.1,2074.6,2.2415608]
[1773505110642,1.2,2075.2,2074.9,2.2415608]
[1773505110842,1.2,2075.2,2075.0,1.20481927]
[1773505111440,1.2,2075.2,2075.0,3.44638007]
[1773505112464,1.2,2075.2,2074.9,3.44639891]
[1773505112639,3.38256204,2075.2,2074.9,3.44639891]
[1773505117375,1.2,2075.2,2075.0,2.2415608]
[1773505117879,1.2,2075.2,2075.0,3.44637866]
[1773505118241,1.2,2075.2,2074.9,1.20484805]
[1773505118447,2.18256204,2075.1,2074.5,1.20510966]
[1773505118775,2.18256204,2075.1,2074.5,3.44667046]
[1773505119117,2.18256204,2075.1,2074.6,2.2415608]
[1773505120049,2.18256204,2075.1,2074.7,3.44655429]
[1773505120754,2.18256204,2075.1,2074.8,2.2415608]
[1773505121378,3.38256204,2075.2,2074.8,2.2415608]
[1773505122476,3.38256204,2075.2,2074.8,3.44644989]
[1773505122664,2.18256204,2075.1,2074.8,3.44644989]
[1773505123164,2.18256204,2075.1,2074.8,3.44744989]
[1773505123361,0.002,2075.0,2074.8,3.44744989]
[1773505128484,1.202,2075.2,2074.9,2.2415608]
[1773505128664,3.38456204,2075.2,2074.9,2.2415608]
[1773505130768,3.38456204,2075.2,2074.8,0.001]
[1773505130769,2.16675716,2075.1,2074.8,0.001]
[1773505131677,1.202,2075.2,2074.8,2.12592996]
[1773505131882,3.27445205,2075.2,2074.8,2.12592996]
[1773505134793,3.27445205,2075.2,2074.9,1.20487734]
[1773505137190,3.27445205,2075.2,2074.9,2.12492996]
[1773505137982,3.27445205,2075.2,2075.0,0.001]
[1773505138289,1.202,2075.2,2075.0,0.001]
[1773505138499,2.07245205,2075.1,2075.0,0.001]
[1773505142088,2.52408477,2075.1,2075.0,0.001]
[1773505147793,2.52408477,2075.1,2074.8,0.001]
[1773505148002,2.07245205,2075.1,2074.8,0.001]
[1773505149902,2.07245205,2075.1,2074.8,2.12592996]
[1773505150603,1.202,2075.2,2074.8,2.12592996]
[1773505150807,0.45163378,2075.1,2074.8,2.12592996]
[1773505150986,3.27445205,2075.2,2074.8,2.12592996]
[1773505151287,0.45163378,2075.1,2075.0,0.001]
[1773505151777,0.45363378,2075.1,2075.0,0.001]
[1773505151979,0.002,2075.1,2075.0,0.001]
[1773505157579,0.002,2075.1,2075.0,2.12592996]
[1773505159706,0.002,2075.1,2075.0,0.001]
[1773505162123,0.002,2075.1,2075.0,2.05310146]
[1773505162409,0.19535404,2075.2,2075.1,2.05210146]
[1773505174495,2.00365019,2075.4,2075.1,3.25686267]
[1773505174692,2.00365019,2075.6,2075.2,2.05210146]
[1773505175003,2.00365019,2075.7,2075.3,3.25674657]
[1773505175391,2.00365019,2075.7,2075.3,1.20464511]
[1773505175598,2.00365019,2075.7,2075.4,2.05210146]
[1773505177629,2.00365019,2075.7,2075.4,3.25668288]
[1773505177999,0.002,2075.5,2075.4,3.25668288]
[1773505178309,0.002,2075.5,2075.4,2.05210146]
[1773505178923,0.002,2075.5,2075.4,3.25668852]
[1773505184229,0.002,2075.5,2075.4,2.05210146]
[1773505186221,0.002,2075.5,2075.4,3.25668852]
[1773505188830,0.002,2075.5,2075.4,2.05210146]
[1773505189013,0.002,2075.5,2075.3,1.20559967]
[1773505189014,0.002,2075.5,2075.3,1.20564474]
[1773505189822,0.002,2075.5,2075.3,3.34259024]
[1773505191735,0.002,2075.7,2075.4,1.99533474]
[1773505191916,1.96750041,2075.7,2075.4,1.99533474]
[1773505195044,1.96550041,2075.5,2075.0,0.001]
[1773505195252,1.96550041,2075.5,2074.6,1.20505009]
[1773505195831,1.96550041,2075.3,2074.5,3.20043592]
[1773505198838,1.96550041,2075.1,2074.5,1.99533474]
[1773505200547,1.96550041,2075.1,2074.5,0.001]
[1773505201538,1.96550041,2074.9,2074.5,0.001]
[1773505202825,1.96550041,2074.9,2074.7,0.004]
[1773505203843,1.20493541,2074.8,2074.7,0.004]
[1773505204020,3.17043582,2074.8,2074.7,0.004]
[1773505207029,3.17043582,2074.8,2074.7,0.002]
[1773505207747,3.17043582,2074.8,2074.7,0.004]
[1773505208322,3.17043582,2074.8,2074.7,0.001]
[1773505210159,3.17043582,2074.8,2074.5,0.001]
[1773505210160,1.96550041,2074.7,2074.5,0.001]
[1773505210363,3.17055198,2074.6,2074.5,0.001]
[1773505211144,1.96550041,2074.5,2074.1,0.001]
[1773505212668,3.17066816,2074.4,2074.1,0.001]
[1773505213257,1.20516775,2074.4,2074.1,0.001]
[1773505213459,1.96550041,2074.3,2074.1,0.001]
[1773505214530,1.96550041,2074.2,2074.1,0.001]
[1773505214734,1.2052465,2074.3,2074.1,0.001]
[1773505214969,3.17074691,2074.3,2074.1,0.001]
[1773505220961,1.96550041,2074.2,2074.1,0.001]
[1773505221174,3.17078437,2074.2,2074.1,0.001]
[1773505221373,1.96644999,2074.1,2073.9,0.001]
[1773505227675,3.17172708,2074.3,2073.9,2.11177515]
[1773505230077,1.96644999,2074.2,2073.9,2.11177515]